bitfinex/quotes_SOLUSD_20250902
["timestamp","ask_amount","ask_price","bid_price","bid_amount"]
[1756830265078,39.9,200.72,200.68,0.7]
[1756830265689,52.47534274,200.72,200.68,0.7]
[1756830265982,4.98188448,200.73,200.69,0.7]
[1756830265983,12.57534274,200.73,200.69,0.7]
[1756830266158,39.92,200.73,200.69,0.7]
[1756830266364,39.92,200.73,200.7,0.7]
[1756830266563,39.92,200.73,200.72,12.57534274]
[1756830266786,39.92,200.73,200.72,0.7]
[1756830267183,0.65,200.78,200.72,0.7]
[1756830267364,52.49534274,200.77,200.72,13.27534274]
[1756830267676,39.92,200.77,200.72,0.7]
[1756830267992,3.2522658,200.81,200.73,13.27534274]
[1756830268164,12.57534274,200.81,200.75,12.57534274]
[1756830268367,12.57534274,200.78,200.71,0.7]
[1756830268697,39.92,200.77,200.72,12.57534274]
[1756830268987,39.92,200.77,200.73,13.27534274]
[1756830269589,39.92,200.77,200.74,12.57534274]
[1756830269791,39.92,200.77,200.72,0.7]
[1756830269977,39.92,200.77,200.73,12.57534274]
[1756830270174,39.92,200.77,200.73,13.27534274]
[1756830270377,39.92,200.77,200.73,0.7]
[1756830270572,39.92,200.77,200.74,0.7]
[1756830270887,39.92,200.77,200.71,0.7]
[1756830271267,39.92,200.77,200.67,27.43266879]
[1756830271268,0.65,200.76,200.67,14.97491702]
[1756830271468,0.65,200.75,200.65,5.68374554]
[1756830271684,44.90092423,200.77,200.66,17.55884321]
[1756830271685,12.57534274,200.71,200.66,17.55884321]
[1756830271891,39.92,200.7,200.66,5.68350047]
[1756830272189,39.92,200.69,200.67,0.7]
[1756830272968,4.98113043,200.76,200.68,13.27534274]
[1756830273171,52.49534274,200.75,200.7,12.57534274]
[1756830273399,53.14534274,200.75,200.7,12.57534274]
[1756830273576,53.14534274,200.75,200.68,0.7]
[1756830273776,12.57534274,200.74,200.69,12.57534274]
[1756830274076,13.22534274,200.73,200.68,12.57534274]
[1756830274280,13.22534274,200.73,200.68,13.27534274]
[1756830274594,39.92,200.75,200.69,0.7]
[1756830274778,12.57534274,200.73,200.69,0.7]
[1756830274979,0.65,200.78,200.7,12.57534274]
[1756830275298,0.65,200.78,200.73,12.57534274]
[1756830275477,39.92,200.77,200.76,12.57534274]
[1756830275795,39.92,200.77,200.76,13.27534274]
[1756830275997,0.65,200.83,200.76,18.25636225]
[1756830275998,39.92,200.78,200.76,18.25636225]
[1756830276295,39.92,200.78,200.77,13.27534274]
[1756830276602,39.92,200.8,200.77,0.7]
[1756830276773,39.92,200.81,200.78,13.27534274]
[1756830277098,39.92,200.81,200.79,12.57534274]
[1756830277288,4.50728266,200.9,200.8,13.27534274]
[1756830277289,3.25286725,200.9,200.8,13.27534274]
[1756830277489,39.92,200.88,200.85,12.57534274]
[1756830277800,39.92,200.88,200.81,0.7]
[1756830277801,39.92,200.87,200.81,0.7]
[1756830277971,39.92,200.87,200.84,12.57534274]
[1756830278374,39.92,200.87,200.85,12.57534274]
[1756830278808,39.92,200.87,200.84,12.57534274]
[1756830279471,39.92,200.87,200.85,12.57534274]
[1756830279874,39.92,200.87,200.82,0.7]
[1756830280095,39.92,200.87,200.84,12.57534274]
[1756830280411,0.65,200.86,200.8,4.98007968]
[1756830280582,0.65,200.86,200.81,12.57534274]
[1756830280983,39.92,200.87,200.82,0.7]
[1756830281186,40.59,200.87,200.83,12.57534274]
[1756830281681,39.92,200.87,200.84,12.57534274]
[1756830281875,40.59,200.87,200.83,12.57534274]
[1756830282075,12.57534274,200.86,200.81,12.57534274]
[1756830282309,0.67,200.86,200.82,12.57534274]
[1756830282679,39.92,200.87,200.82,12.57534274]
[1756830282898,39.92,200.87,200.83,12.57534274]
[1756830283075,39.92,200.87,200.77,17.43288339]
[1756830283281,40.59,200.87,200.82,12.57534274]
[1756830283577,12.57534274,200.89,200.84,12.57534274]
[1756830283783,39.92,200.88,200.85,12.57534274]
[1756830283982,39.92,200.88,200.86,12.57534274]
[1756830284184,39.92,200.88,200.84,12.57534274]
[1756830284394,53.16534274,200.88,200.83,12.57534274]
[1756830284697,53.16534274,200.88,200.81,4.97960559]
[1756830284698,39.92,200.88,200.85,12.57534274]
[1756830285109,39.92,200.88,200.81,4.97960559]
[1756830285298,13.24534274,200.87,200.82,12.57534274]
[1756830285481,39.92,200.88,200.79,4.98030008]
[1756830285482,13.24534274,200.86,200.79,4.98030008]
[1756830285681,13.24534274,200.86,200.77,26.0]
[1756830285682,26.67,200.85,200.72,0.67]
[1756830285913,12.57534274,200.81,200.76,12.57534274]
[1756830286208,52.47534274,200.8,200.75,12.57534274]
[1756830286390,52.47534274,200.8,200.74,12.57534274]
[1756830286585,52.47534274,200.8,200.75,12.57534274]
[1756830286796,39.9,200.8,200.76,0.67]
[1756830287187,39.9,200.8,200.77,13.24534274]
[1756830287701,0.67,200.88,200.78,0.67]
[1756830287903,12.57534274,200.86,200.79,4.9803277]
[1756830288108,12.57534274,200.84,200.79,4.9803277]
[1756830288401,0.67,200.83,200.79,4.9803277]
[1756830288668,31.86,200.85,200.79,17.55567044]
[1756830288793,31.86,200.85,200.8,12.57534274]
[1756830288991,32.53,200.85,200.8,12.57534274]
[1756830289213,32.53,200.85,200.81,4.97983168]
[1756830289518,13.24534274,200.88,200.81,5.64983168]
[1756830289704,39.9,200.87,200.83,12.57534274]
[1756830290008,40.57,200.87,200.83,12.57534274]
[1756830290885,39.9,200.87,200.85,12.57534274]
[1756830291087,12.57534274,200.9,200.85,12.57534274]
[1756830291310,53.14534274,200.89,200.84,12.57534274]
[1756830291507,13.24534274,200.88,200.83,12.57534274]
[1756830291710,0.67,200.87,200.83,12.57534274]
[1756830291912,0.67,200.87,200.81,4.97980032]
[1756830292093,0.67,200.86,200.82,12.57534274]
[1756830292304,39.9,200.85,200.83,12.57534274]
[1756830292696,13.24534274,200.84,200.78,4.98057575]
[1756830292899,12.57534274,200.82,200.77,12.57534274]
[1756830293184,12.57534274,200.82,200.74,0.67]
[1756830293185,53.14534274,200.81,200.75,12.57534274]
[1756830293685,12.57534274,200.8,200.75,12.57534274]
[1756830294022,12.57534274,200.8,200.67,0.03]
[1756830294023,12.57534274,200.77,200.72,12.57534274]
[1756830294185,39.9,200.76,200.72,12.57534274]
[1756830294384,39.9,200.76,200.68,4.9830576]
[1756830294590,12.57534274,200.75,200.7,12.57534274]
[1756830294908,12.57534274,200.75,200.68,4.9830576]
[1756830294909,39.9,200.76,200.74,0.03]
[1756830296016,0.67,200.75,200.74,0.03]
[1756830296409,13.24534274,200.75,200.74,0.03]
[1756830297112,18.22666278,200.75,200.74,0.03]
[1756830297308,0.14216157,200.8,200.74,0.03]
[1756830297512,40.57,200.79,200.74,0.03]
[1756830297823,12.57534274,200.77,200.74,0.03]
[1756830298015,12.57534274,200.76,200.74,0.03]
[1756830298225,52.47534274,200.75,200.74,0.03]
[1756830298755,53.14534274,200.75,200.74,0.03]
[1756830298933,39.9,200.75,200.74,0.03]
[1756830299721,40.57,200.75,200.74,0.03]
[1756830300042,53.14534274,200.75,200.74,0.03]
[1756830300253,26.0,200.81,200.74,0.7]
[1756830300442,13.24534274,200.81,200.75,12.57534274]
[1756830300751,40.57,200.8,200.74,0.03]
[1756830301041,12.57534274,200.77,200.74,0.03]
[1756830301242,39.9,200.76,200.74,0.03]
[1756830301437,12.57534274,200.75,200.74,0.03]
[1756830301626,13.24534274,200.75,200.74,0.03]
[1756830302010,0.42648471,200.74,200.63,4.98428279]
[1756830302246,27.26742146,200.75,200.63,4.98428279]
[1756830302247,12.57534274,200.69,200.63,12.57534274]
[1756830302542,39.9,200.68,200.64,12.57534274]
[1756830302720,39.9,200.67,200.64,13.24534274]
[1756830303046,39.9,200.68,200.66,17.55869283]
[1756830303232,39.9,200.69,200.65,5.65379289]
[1756830303421,39.9,200.69,200.62,0.67]
[1756830303736,12.45394326,200.74,200.6,4.98491843]
[1756830303737,12.57534274,200.66,200.6,4.98491843]
[1756830303943,39.9,200.65,200.61,12.57534274]
[1756830304150,39.9,200.65,200.6,4.98491843]
[1756830304357,0.67,200.64,200.55,4.9862877]
[1756830304528,13.24534274,200.64,200.58,12.57534274]
[1756830304841,39.9,200.63,200.59,12.57534274]
[1756830305025,39.9,200.63,200.59,18.23052193]
[1756830305341,26.67,200.69,200.62,12.57534274]
[1756830305546,39.92,200.68,200.64,12.57534274]
[1756830305723,0.67,200.69,200.64,12.57534274]
[1756830305918,39.92,200.68,200.64,12.57534274]
[1756830306113,0.67,200.67,200.63,12.57534274]
[1756830306426,0.67,200.67,200.59,5.65517919]
[1756830306427,52.49534274,200.68,200.62,12.57534274]
[1756830306630,0.67,200.67,200.62,12.57534274]
[1756830306946,12.57534274,200.63,200.57,0.67]
[1756830307124,52.49534274,200.62,200.57,12.57534274]
[1756830307441,0.67,200.61,200.56,12.57534274]
[1756830307847,12.57534274,200.58,200.52,12.57534274]
[1756830308140,39.92,200.57,200.53,12.57534274]
[1756830308440,0.67,200.56,200.48,0.67]
[1756830308650,12.57534274,200.52,200.4,12.57534274]
[1756830308848,39.96,200.51,200.43,0.67]
[1756830309052,39.96,200.5,200.46,12.57534274]
[1756830309223,13.24534274,200.51,200.46,12.57534274]
[1756830309416,39.98,200.49,200.45,4.98868797]
[1756830309638,0.67,200.51,200.47,8.37280839]
[1756830309922,26.0,200.58,200.47,8.37280839]
[1756830309923,39.98,200.49,200.47,8.37280839]
[1756830310127,39.5,200.5,200.47,8.37280839]
[1756830310353,39.98,200.52,200.48,0.67]
[1756830310546,39.98,200.52,200.48,9.04280839]
[1756830310746,39.98,200.52,200.45,0.67]
[1756830311043,39.98,200.52,200.47,8.37280839]
[1756830311356,8.37280839,200.5,200.44,4.98902414]
[1756830311649,40.0,200.5,200.46,8.37280839]
[1756830311837,8.37280839,200.52,200.46,9.08280839]
[1756830312024,40.0,200.51,200.46,9.08280839]
[1756830312222,40.0,200.51,200.46,8.37280839]
[1756830312428,40.0,200.53,200.5,8.37280839]
[1756830312741,0.69,200.57,200.51,0.71]
[1756830312944,40.0,200.56,200.51,0.71]
[1756830313142,40.0,200.56,200.48,0.71]
[1756830313339,8.37280839,200.55,200.49,4.98777993]
[1756830313535,40.69,200.56,200.49,4.98777993]
[1756830313854,40.69,200.56,200.51,8.37280839]
[1756830314055,0.69,200.58,200.52,8.37280839]
[1756830314227,8.37280839,200.57,200.52,8.37280839]
[1756830314426,40.02,200.56,200.54,8.37280839]
[1756830314644,44.91032283,200.72,200.49,17.45722977]
[1756830314645,9.06280839,200.55,200.49,4.98777993]
[1756830314857,48.39280839,200.54,200.49,13.36058832]
[1756830315041,40.02,200.54,200.49,13.36058832]
[1756830315229,40.02,200.54,200.49,4.98777993]
[1756830315431,9.06280839,200.53,200.49,4.98777993]
[1756830315630,40.02,200.54,200.47,13.39088862]
[1756830315956,8.37280839,200.5,200.47,0.03]
[1756830316127,40.02,200.49,200.47,0.03]
[1756830316328,0.69,200.54,200.47,8.40280839]
[1756830316649,8.37280839,200.55,200.49,8.37280839]
[1756830316833,40.06,200.54,200.49,8.37280839]
[1756830317034,49.12280839,200.54,200.49,8.37280839]
[1756830317235,49.12280839,200.54,200.49,13.36058832]
[1756830317553,8.37280839,200.56,200.49,17.45722977]
[1756830317755,40.06,200.54,200.49,18.16722977]
[1756830318060,9.06280839,200.57,200.51,8.37280839]
[1756830318061,40.06,200.55,200.51,8.37280839]
[1756830318535,40.75,200.55,200.49,18.16722977]
[1756830318734,8.37280839,200.51,200.49,4.98777993]
[1756830318949,40.04,200.5,200.47,5.01809589]
[1756830319152,40.73,200.5,200.47,5.01809589]
[1756830319333,40.73,200.5,200.47,0.03]
[1756830319867,0.69,200.54,200.48,0.71]
[1756830320160,40.06,200.53,200.48,8.37280839]
[1756830320357,40.06,200.53,200.49,8.37280839]
[1756830320660,40.06,200.53,200.51,8.37280839]
[1756830321044,40.06,200.54,200.51,8.37280839]
[1756830321436,40.06,200.54,200.5,13.36011219]
[1756830321669,40.75,200.54,200.5,13.36011219]
[1756830322034,40.06,200.54,200.51,8.37280839]
[1756830323063,40.06,200.54,200.5,4.9873038]
[1756830323064,40.06,200.54,200.5,13.36011219]
[1756830323755,40.75,200.54,200.5,13.36011219]
[1756830323932,0.69,200.53,200.5,4.9873038]
[1756830324132,40.06,200.54,200.5,13.36011219]
[1756830324329,40.75,200.54,200.5,4.9873038]
[1756830324535,40.06,200.54,200.5,13.36011219]
[1756830324733,40.06,200.54,200.51,8.37280839]
[1756830324929,40.0,200.55,200.53,8.37280839]
[1756830325164,40.0,200.55,200.52,8.37280839]
[1756830325367,0.69,200.54,200.47,17.48880984]
[1756830325560,40.0,200.55,200.51,8.37280839]
[1756830325741,40.69,200.55,200.51,8.37280839]
[1756830326372,40.0,200.55,200.52,8.37280839]
[1756830326536,40.0,200.55,200.49,0.71]
[1756830326738,40.0,200.55,200.52,8.37280839]
[1756830326938,39.98,200.55,200.52,8.37280839]
[1756830327548,39.98,200.55,200.51,13.35999096]
[1756830328245,39.98,200.55,200.47,12.5005323]
[1756830328246,0.69,200.54,200.47,0.03]
[1756830328444,8.37280839,200.51,200.47,0.03]
[1756830328687,40.69,200.5,200.47,0.03]
[1756830328859,49.06280839,200.5,200.47,5.01823426]
[1756830329057,0.69,200.49,200.47,0.03]
[1756830329263,9.06280839,200.49,200.47,0.03]
[1756830329463,8.37280839,200.49,200.47,0.03]
[1756830329686,0.69,200.48,200.47,0.03]
[1756830329843,9.06280839,200.48,200.47,0.03]
[1756830330471,0.69,200.48,200.47,0.03]
[1756830331145,9.06280839,200.48,200.47,0.03]
[1756830331366,40.67,200.48,200.38,0.71]
[1756830331562,0.69,200.48,200.44,8.37280839]
[1756830331871,0.69,200.51,200.47,8.37280839]
[1756830332036,0.14216157,200.57,200.48,8.37280839]
[1756830332239,8.37280839,200.55,200.49,8.37280839]
[1756830332458,9.06280839,200.56,200.5,8.37280839]
[1756830332771,0.69,200.56,200.52,8.37280839]
[1756830333073,31.84,200.56,200.55,8.37280839]
[1756830333765,40.08,200.57,200.55,8.37280839]
[1756830334067,0.69,200.61,200.54,4.98653635]
[1756830334363,26.0,200.65,200.58,8.37280839]
[1756830334572,9.06280839,200.64,200.58,8.37280839]
[1756830334758,40.06,200.63,200.56,0.71]
[1756830334952,9.06280839,200.64,200.58,8.37280839]
[1756830335259,40.06,200.63,200.58,8.37280839]
[1756830335464,49.12280839,200.63,200.58,8.37280839]
[1756830335659,0.69,200.62,200.58,4.9855382]
[1756830335859,0.69,200.61,200.57,8.37280839]
[1756830336041,0.69,200.61,200.52,0.71]
[1756830336042,0.69,200.6,200.53,4.98657629]
[1756830336243,0.69,200.59,200.51,8.37280839]
[1756830336480,8.37280839,200.56,200.51,8.37280839]
[1756830336641,8.37280839,200.54,200.48,13.36083712]
[1756830336842,48.45280839,200.54,200.48,13.36083712]
[1756830337445,4.98451834,200.63,200.51,8.37280839]
[1756830337646,0.69,200.59,200.53,4.98678501]
[1756830337846,40.06,200.58,200.57,8.37280839]
[1756830338051,40.06,200.58,200.55,0.71]
[1756830338242,40.06,200.58,200.57,8.37280839]
[1756830338439,40.06,200.58,200.55,0.71]
[1756830338744,49.12280839,200.58,200.51,26.71]
[1756830339048,49.12280839,200.58,200.51,8.37280839]
[1756830339049,9.06280839,200.57,200.51,8.37280839]
[1756830339241,9.06280839,200.57,200.49,0.71]
[1756830339242,8.37280839,200.55,200.5,8.37280839]
[1756830339559,8.37280839,200.53,200.47,5.72823035]
[1756830339760,40.08,200.52,200.47,14.10103874]
[1756830340157,49.14280839,200.52,200.47,5.01823035]
[1756830340358,8.37280839,200.49,200.47,0.03]
[1756830340568,8.37280839,200.5,200.47,0.03]
[1756830340768,0.69,200.51,200.47,5.01822611]
[1756830340973,40.08,200.52,200.5,8.37280839]
[1756830341277,40.08,200.52,200.51,8.37280839]
[1756830341457,40.08,200.52,200.5,8.37280839]
[1756830341767,0.71,200.51,200.47,0.03]
[1756830341951,0.71,200.56,200.5,8.37280839]
[1756830342154,0.71,200.56,200.51,8.37280839]
[1756830342346,26.0,200.59,200.52,8.37280839]
[1756830342540,26.0,200.59,200.49,0.67]
[1756830342541,48.45280839,200.58,200.49,0.67]
[1756830342770,8.37280839,200.57,200.49,0.67]
[1756830342946,0.71,200.57,200.49,0.67]
[1756830343152,8.37280839,200.53,200.48,8.37280839]
[1756830343340,8.37280839,200.53,200.47,0.03]
[1756830343341,40.79,200.52,200.47,0.03]
[1756830343546,40.79,200.52,200.47,13.39104712]
[1756830343846,40.08,200.52,200.48,9.04280839]
[1756830344270,40.08,200.52,200.49,8.37280839]
[1756830344773,8.37280839,200.57,200.51,8.37280839]
[1756830344978,35.08280839,200.59,200.53,8.37280839]
[1756830345161,40.08,200.56,200.53,8.37280839]
[1756830345673,0.71,200.61,200.56,4.98603909]
[1756830345855,40.77,200.6,200.56,4.98603909]
[1756830346062,0.71,200.59,200.55,8.37280839]
[1756830346251,0.71,200.59,200.54,8.37280839]
[1756830346455,0.71,200.58,200.53,13.3595934]
[1756830346648,40.06,200.6,200.55,8.37280839]
[1756830346955,40.08,200.59,200.57,8.37280839]
[1756830347271,40.08,200.58,200.56,8.37280839]
[1756830347490,40.08,200.58,200.53,4.98678501]
[1756830347670,40.08,200.58,200.55,13.35898859]
[1756830347983,40.06,200.57,200.55,4.9861802]
[1756830348174,40.06,200.57,200.55,13.35898859]
[1756830348370,40.06,200.57,200.56,8.37280839]
[1756830349073,40.04,200.57,200.56,8.37280839]
[1756830349380,0.71,200.61,200.56,8.37280839]
[1756830349581,0.71,200.61,200.57,8.37280839]
[1756830349766,40.04,200.6,200.54,18.12287722]
[1756830349955,40.04,200.6,200.55,0.67]
[1756830350155,40.04,200.6,200.56,8.37280839]
[1756830350361,0.71,200.59,200.54,13.35934474]
[1756830350772,0.71,200.58,200.54,13.35934474]
[1756830350994,48.41280839,200.6,200.54,13.35934474]
[1756830351496,9.08280839,200.59,200.52,4.98703371]
[1756830351795,8.37280839,200.54,200.48,4.98802873]
[1756830352103,8.37280839,200.5,200.47,0.03]
[1756830352278,40.04,200.49,200.47,0.03]
[1756830352789,49.12280839,200.49,200.47,0.03]
[1756830352989,40.75,200.49,200.47,0.03]
[1756830353163,9.08280839,200.48,200.47,0.03]
[1756830353496,40.77,200.48,200.47,0.03]
[1756830353667,0.71,200.48,200.47,0.03]
[1756830353866,49.14280839,200.48,200.47,0.03]
[1756830354067,9.08280839,200.48,200.47,0.03]
[1756830354288,49.12280839,200.48,200.47,0.03]
[1756830354865,54.11083712,200.48,200.47,0.03]
[1756830356492,54.11083712,200.48,200.33,0.67]
[1756830356493,26.0,200.45,200.33,0.67]
[1756830356666,13.59559401,200.4,200.26,0.67]
[1756830356867,41.21648471,200.39,200.28,8.37280839]
[1756830357096,8.37280839,200.33,200.27,0.67]
[1756830357400,5.70051801,200.38,200.26,8.37280839]
[1756830357401,48.47280839,200.32,200.26,8.37280839]
[1756830357688,48.47280839,200.32,200.25,0.67]
[1756830357889,40.08,200.31,200.26,8.37280839]
[1756830358077,40.08,200.31,200.25,0.67]
[1756830358279,8.37280839,200.29,200.23,8.37280839]
[1756830358585,8.37280839,200.29,200.22,0.67]
[1756830358769,8.37280839,200.29,200.24,8.37280839]
[1756830358971,40.1,200.28,200.24,8.37280839]
[1756830359170,40.1,200.28,200.23,4.9942566]
[1756830359393,8.37280839,200.3,200.24,9.04280839]
[1756830359596,40.1,200.29,200.28,8.37280839]
[1756830359785,0.71,200.35,200.28,8.37280839]
[1756830359979,40.1,200.34,200.3,8.37280839]
[1756830360293,9.08280839,200.33,200.26,0.67]
[1756830360608,40.1,200.32,200.26,0.67]
[1756830360805,40.08,200.33,200.31,8.37280839]
[1756830360975,40.08,200.36,200.31,0.67]
[1756830361303,0.71,200.35,200.25,17.4781523]
[1756830361476,48.45280839,200.36,200.31,8.37280839]
[1756830361803,0.71,200.36,200.28,0.67]
[1756830362003,40.12,200.35,200.33,8.37280839]
[1756830362198,0.71,200.38,200.34,9.04280839]
[1756830362199,40.1,200.38,200.34,9.04280839]
[1756830362518,40.14,200.41,200.37,8.37280839]
[1756830362702,40.14,200.41,200.4,8.37280839]
[1756830362907,40.16,200.42,200.4,8.37280839]
[1756830363216,40.16,200.42,200.41,8.37280839]
[1756830363580,40.16,200.42,200.4,4.98979163]
[1756830363784,37.94704049,200.52,200.41,9.04280839]
[1756830363999,8.37280839,200.48,200.43,8.37280839]
[1756830364203,0.71,200.47,200.43,8.37280839]
[1756830364414,40.16,200.46,200.4,4.98979163]
[1756830364596,0.71,200.5,200.45,8.37280839]
[1756830364805,40.16,200.49,200.46,8.37280839]
[1756830365010,40.16,200.49,200.42,4.989522]
[1756830365184,8.37280839,200.47,200.38,0.67]
[1756830365501,9.08280839,200.48,200.43,8.37280839]
[1756830365700,0.71,200.47,200.43,8.37280839]
[1756830366262,0.71,200.46,200.39,4.99026897]
[1756830366415,0.71,200.46,200.41,8.37280839]
[1756830366725,0.71,200.46,200.39,4.99026897]
[1756830366726,9.08280839,200.45,200.39,4.99026897]
[1756830366886,40.14,200.44,200.35,0.67]
[1756830367213,9.08280839,200.43,200.37,8.37280839]
[1756830367422,8.37280839,200.41,200.32,0.67]
[1756830367588,0.71,200.4,200.32,0.67]
[1756830367920,0.71,200.4,200.29,12.48178284]
[1756830367921,8.37280839,200.36,200.3,13.36528801]
[1756830368287,9.08280839,200.37,200.31,8.37280839]
[1756830368791,40.16,200.36,200.31,8.37280839]
[1756830368989,26.0,200.41,200.35,13.36406551]
[1756830369181,0.71,200.42,200.35,4.99125712]
[1756830369382,40.16,200.41,200.37,8.37280839]
[1756830369700,35.07269127,200.53,200.4,8.37280839]
[1756830369701,40.16,200.44,200.4,8.37280839]
[1756830369903,0.71,200.49,200.43,8.37280839]
[1756830370214,35.08,200.49,200.41,0.67]
[1756830370733,0.71,200.56,200.48,8.37280839]
[1756830370883,0.06,200.63,200.43,26.0]
[1756830370884,10.34,200.57,200.54,8.37280839]
[1756830371084,0.71,200.56,200.45,26.0]
[1756830371284,0.71,200.55,200.48,8.37280839]
[1756830371517,12.63027602,200.54,200.49,12.63027602]
[1756830371812,22.97027602,200.57,200.51,12.63027602]
[1756830372027,10.34,200.57,200.53,12.63027602]
[1756830372187,11.05,200.57,200.53,12.63027602]
[1756830373196,11.05,200.57,200.5,0.67]
[1756830373398,28.66609545,200.57,200.52,12.63027602]
[1756830373752,0.71,200.56,200.52,12.63027602]
[1756830373892,10.34,200.57,200.52,12.63027602]
[1756830374097,0.71,200.56,200.43,0.67]
[1756830374296,12.63027602,200.54,200.48,12.63027602]
[1756830374496,0.71,200.54,200.48,12.63027602]
[1756830374698,12.63027602,200.54,200.49,12.63027602]
[1756830374913,12.63027602,200.53,200.46,0.67]
[1756830375126,12.63027602,200.53,200.48,12.63027602]
[1756830375333,0.71,200.52,200.47,12.63027602]
[1756830375622,12.63027602,200.5,200.44,17.61930016]
[1756830375826,40.22,200.5,200.46,12.63027602]
[1756830376004,0.71,200.54,200.46,12.63027602]
[1756830376005,12.63027602,200.52,200.46,12.63027602]
[1756830376326,12.52115512,200.63,200.51,12.63027602]
[1756830376327,52.85027602,200.58,200.51,12.63027602]
[1756830376487,0.71,200.57,200.47,0.67]
[1756830376692,40.24,200.62,200.56,12.63027602]
[1756830376989,40.95,200.62,200.56,12.63027602]
[1756830377191,0.77,200.6,200.53,4.98678501]
[1756830377393,0.77,200.6,200.55,12.63027602]
[1756830377608,0.77,200.6,200.53,4.98678501]
[1756830377802,0.77,200.6,200.55,12.63027602]
[1756830378030,0.06,200.6,200.56,12.63027602]
[1756830378216,0.71,200.59,200.53,4.98678501]
[1756830378516,12.63027602,200.57,200.51,12.63027602]
[1756830378918,0.06,200.6,200.55,12.63027602]
[1756830379121,0.06,200.6,200.56,12.63027602]
[1756830379507,13.34027602,200.59,200.5,4.98753117]
[1756830379731,13.34027602,200.59,200.51,12.63027602]
[1756830379732,12.63027602,200.57,200.51,12.63027602]
[1756830380030,12.63027602,200.57,200.5,4.98753117]
[1756830380031,0.71,200.59,200.53,12.63027602]
[1756830380212,12.63027602,200.58,200.5,4.98753117]
[1756830380417,0.06,200.6,200.45,0.67]
[1756830380418,12.63027602,200.53,200.45,0.67]
[1756830380633,12.63027602,200.53,200.48,12.63027602]
[1756830380820,13.34027602,200.53,200.48,12.63027602]
[1756830381128,12.63027602,200.51,200.42,4.989522]
[1756830381336,0.71,200.52,200.46,12.63027602]
[1756830381515,26.71,200.56,200.48,12.63027602]
[1756830381723,53.07027602,200.54,200.48,12.63027602]
[1756830382132,12.63027602,200.52,200.46,12.63027602]
[1756830382934,0.71,200.53,200.47,12.63027602]
[1756830383134,0.71,200.57,200.5,12.63027602]
[1756830383311,12.63027602,200.55,200.48,4.98802873]
[1756830383636,13.34027602,200.55,200.49,12.63027602]
[1756830383813,12.63027602,200.54,200.48,12.63027602]
[1756830384009,12.63027602,200.52,200.46,12.63027602]
[1756830384415,12.63027602,200.52,200.47,12.63027602]
[1756830384618,12.63027602,200.52,200.48,12.63027602]
[1756830384619,0.71,200.52,200.48,12.63027602]
[1756830384812,40.42,200.52,200.48,12.63027602]
[1756830385015,13.34027602,200.54,200.48,12.63027602]
[1756830385235,40.42,200.53,200.48,12.63027602]
[1756830385550,40.42,200.53,200.46,4.98830251]
[1756830385551,58.74714577,200.53,200.46,4.98830251]
[1756830385724,12.63027602,200.51,200.45,12.63027602]
[1756830385907,12.63027602,200.52,200.46,12.63027602]
[1756830386110,40.4,200.53,200.48,12.63027602]
[1756830386428,40.4,200.53,200.49,12.63027602]
[1756830387345,40.4,200.53,200.4,24.94990851]
[1756830387346,13.34027602,200.52,200.45,5.65861861]
[1756830387519,13.34027602,200.52,200.47,12.63027602]
[1756830387939,0.71,200.52,200.47,12.63027602]
[1756830388147,40.4,200.53,200.48,12.63027602]
[1756830388329,12.63027602,200.54,200.49,12.63027602]
[1756830388650,40.38,200.53,200.5,12.63027602]
[1756830389015,40.38,200.53,200.46,0.67]
[1756830389216,40.38,200.53,200.49,12.63027602]
[1756830389519,0.71,200.52,200.47,12.63027602]